bitfinex/quotes_ETHUSD_20240702
["timestamp","ask_amount","ask_price","bid_price","bid_amount"]
[1719913810930,2.3042,3450.7,3450.4,0.07523806]
[1719913811122,2.3042,3450.7,3450.3,2.89825]
[1719913811123,2.3042,3450.7,3450.3,2.95620929]
[1719913811319,2.3042,3450.7,3450.4,0.89922121]
[1719913812025,2.4357,3451.2,3450.5,2.89807]
[1719913812248,2.4357,3451.0,3450.5,2.89807]
[1719913812448,2.4357,3451.0,3450.6,0.07519032]
[1719913814768,2.4357,3451.0,3450.7,0.05795594]
[1719913814973,2.4357,3451.0,3450.8,0.59292363]
[1719913815273,2.4357,3451.0,3450.8,0.07507515]
[1719913815560,2.4357,3451.0,3450.6,2.89802]
[1719913815761,2.4357,3451.0,3450.9,0.07507515]
[1719913815948,2.4357,3451.0,3450.7,2.95590314]
[1719913816129,2.4357,3451.0,3450.9,0.07507515]
[1719913816467,2.4357,3451.0,3450.7,2.95590314]
[1719913816634,2.4357,3451.0,3450.9,0.07507515]
[1719913816828,2.4357,3451.0,3450.7,2.95590314]
[1719913817143,2.4357,3451.0,3450.7,3.62370045]
[1719913817344,2.4357,3451.0,3450.8,0.07507515]
[1719913818990,2.0503,3451.0,3450.8,0.07507515]
[1719913820345,1.6649,3451.0,3450.8,0.07507515]
[1719913820720,1.6649,3451.0,3450.5,5.79611]
[1719913820946,1.6649,3451.0,3450.6,0.80387254]
[1719913821314,0.824,3451.4,3450.7,0.05795296]
[1719913821529,2.89707,3451.8,3450.7,0.05795296]
[1719913821530,0.824,3451.5,3450.7,0.05795296]
[1719913821745,0.824,3451.5,3450.8,0.07507515]
[1719913821960,2.89721,3451.6,3450.8,0.07507515]
[1719913822264,0.824,3451.5,3450.8,0.07507515]
[1719913823327,2.3649,3451.4,3450.8,1.1232647]
[1719913824835,2.3649,3451.4,3450.9,0.05795245]
[1719913825021,2.3649,3451.4,3450.9,2.95568245]
[1719913825223,2.3649,3451.4,3451.0,0.07507515]
[1719913825446,2.3649,3451.4,3451.0,1.07276387]
[1719913828658,2.3649,3451.4,3451.0,0.07507515]
[1719913828858,2.3752,3451.2,3451.0,0.07507515]
[1719913829070,2.3752,3451.2,3450.6,3.0]
[1719913829234,2.3752,3451.2,3451.1,0.07507515]
[1719913829415,2.3752,3451.2,3450.6,3.0]
[1719913829619,2.3752,3451.2,3451.1,0.07494038]
[1719913829819,2.3752,3451.2,3450.6,3.0]
[1719913830032,2.3752,3451.2,3451.1,0.07494038]
[1719913830240,2.3752,3451.2,3450.6,3.0]
[1719913830457,2.3752,3451.2,3451.1,0.07494038]
[1719913830630,2.3752,3451.2,3450.6,3.0]
[1719913830825,2.3752,3451.2,3451.1,0.07494038]
[1719913831048,2.3752,3451.2,3450.6,3.0]
[1719913831265,2.3752,3451.2,3451.1,0.07494038]
[1719913831468,2.3752,3451.2,3450.6,3.0]
[1719913831630,2.3752,3451.2,3451.1,0.07494038]
[1719913831827,2.3752,3451.2,3450.6,3.0]
[1719913832034,2.3752,3451.2,3451.1,0.1111905]
[1719913832253,2.3752,3451.2,3450.6,3.0]
[1719913832431,2.3752,3451.2,3451.1,0.1111905]
[1719913832631,2.3752,3451.2,3450.6,3.0]
[1719913832852,2.3752,3451.2,3451.1,0.1111905]
[1719913833052,2.3752,3451.2,3450.6,3.0]
[1719913833249,2.3752,3451.2,3451.1,0.1111905]
[1719913833456,2.3752,3451.2,3450.6,3.0]
[1719913833642,2.3752,3451.2,3451.1,0.1111905]
[1719913833827,2.3752,3451.2,3450.6,3.0]
[1719913834023,2.3752,3451.2,3451.1,0.1111905]
[1719913834230,2.3752,3451.2,3450.6,3.0]
[1719913834429,2.3752,3451.2,3451.1,0.1111905]
[1719913834642,2.3752,3451.2,3450.6,3.0]
[1719913835143,2.3752,3451.2,3450.7,0.1111905]
[1719913839777,2.4509,3451.1,3450.7,0.1111905]
[1719913839955,2.4509,3451.1,3450.4,3.0]
[1719913840158,2.4509,3451.1,3450.5,1.0043765]
[1719913844761,2.2873,3451.0,3450.5,1.0043765]
[1719913845094,2.2873,3451.0,3450.5,0.1111905]
[1719913845985,2.2873,3451.0,3450.6,0.11120736]
[1719913846584,2.2873,3451.0,3450.7,0.11120736]
[1719913846786,2.2873,3451.0,3450.3,3.0]
[1719913846953,2.2873,3451.0,3450.8,0.11120736]
[1719913847157,2.2873,3451.0,3450.3,3.0]
[1719913847355,2.2873,3451.0,3450.4,1.07328636]
[1719913852071,2.2873,3451.0,3450.4,0.11120736]
[1719913852268,2.89715,3451.7,3450.4,0.11120736]
[1719913852269,2.3219,3450.5,3450.4,0.11120736]
[1719913852797,2.3219,3450.5,3449.7,3.0]
[1719913853096,2.3219,3450.5,3450.4,0.11109502]
[1719913853300,2.3219,3450.5,3449.7,3.0]
[1719913853464,2.3219,3450.5,3449.8,1.183136]
[1719913853792,2.3219,3450.5,3449.8,4.29423102]
[1719913854093,0.824,3450.4,3449.8,4.29423102]
[1719913857287,2.3282,3450.1,3449.8,0.11109502]
[1719913857677,2.3372,3449.9,3449.1,5.10886]
[1719913857906,0.824,3449.8,3449.1,5.10886]
[1719913858090,0.824,3449.8,3449.2,0.883229]
[1719913858294,2.3372,3449.9,3449.2,0.883229]
[1719913858903,2.3372,3449.9,3449.2,3.883229]
[1719913860408,2.3372,3449.9,3449.2,6.782429]
[1719913862190,2.3372,3449.9,3449.3,2.89908]
[1719913862405,2.3372,3449.9,3449.4,4.21772041]
[1719913863488,2.3372,3449.9,3449.4,3.0]
[1719913863792,2.3372,3449.9,3449.3,3.0]
[1719913863994,0.824,3449.8,3449.3,3.0]
[1719913865134,2.3372,3449.9,3449.3,3.0]
[1719913865298,2.3372,3449.9,3449.3,5.89913]
[1719913866023,2.3372,3449.9,3449.4,0.10390198]
[1719913866818,0.824,3449.8,3449.4,0.10390198]
[1719913866996,0.824,3449.5,3449.4,0.10390198]
[1719913867317,0.824,3449.5,3448.9,5.89942]
[1719913867617,0.824,3449.5,3448.9,3.0]
[1719913867618,2.4826,3449.4,3448.9,3.0]
[1719913870587,0.824,3449.2,3448.7,3.0]
[1719913870820,2.382,3449.1,3448.7,3.0]
[1719913873424,0.824,3449.0,3448.5,3.0]
[1719913873603,0.824,3449.0,3448.5,0.810954]
[1719913874616,0.824,3449.0,3448.4,5.89989]
[1719913876496,0.824,3449.0,3448.4,3.0]
[1719913876710,0.824,3449.0,3448.3,2.89996]
[1719913876915,0.824,3449.0,3448.4,3.0]
[1719913880825,0.824,3449.0,3448.5,0.10259966]
[1719913882159,2.467,3448.9,3448.5,0.10259966]
[1719913882466,2.467,3448.9,3448.3,2.89991]
[1719913882629,2.467,3448.9,3448.6,0.10257998]
[1719913882829,2.467,3448.9,3448.3,2.89991]
[1719913883147,3.291,3448.9,3448.7,0.10260247]
[1719913883458,3.291,3448.9,3448.8,0.10260247]
[1719913883626,3.291,3448.9,3448.4,3.0]
[1719913883828,3.291,3448.9,3448.8,0.10260247]
[1719913884029,3.291,3448.9,3448.4,3.0]
[1719913884294,3.291,3448.9,3448.8,0.10260247]
[1719913884475,3.291,3448.9,3448.4,3.0]
[1719913884686,3.291,3448.9,3448.8,0.10260247]
[1719913884833,2.467,3448.9,3448.4,3.0]
[1719913885181,3.291,3448.9,3448.8,0.10260247]
[1719913885383,3.291,3448.9,3448.4,3.0]
[1719913885549,3.291,3448.9,3448.8,0.09918239]
[1719913886068,3.291,3448.9,3448.4,3.0]
[1719913886380,3.291,3448.9,3448.8,0.09918239]
[1719913886540,3.291,3448.9,3448.4,3.0]
[1719913886735,3.291,3448.9,3448.8,0.09918239]
[1719913886935,3.291,3448.9,3448.4,3.0]
[1719913887137,3.291,3448.9,3448.8,0.09918239]
[1719913887654,3.291,3448.9,3448.4,3.0]
[1719913887870,3.291,3448.9,3448.8,0.09918239]
[1719913888048,3.291,3448.9,3448.4,3.0]
[1719913888254,3.291,3448.9,3448.8,0.09918239]
[1719913888561,3.291,3448.9,3448.4,3.0]
[1719913888761,3.291,3448.9,3448.8,0.09918239]
[1719913888964,3.291,3448.9,3448.4,3.0]
[1719913889165,3.291,3448.9,3448.8,0.09918239]
[1719913889341,3.291,3448.9,3448.4,3.0]
[1719913889536,3.291,3448.9,3448.8,0.09918239]
[1719913889740,3.291,3448.9,3448.4,3.0]
[1719913889966,3.291,3448.9,3448.8,0.09918239]
[1719913890174,3.291,3448.9,3448.4,3.0]
[1719913890373,3.291,3448.9,3448.8,0.09918239]
[1719913890569,3.291,3448.9,3448.4,5.89989]
[1719913890750,3.291,3448.9,3448.8,0.09923019]
[1719913890951,3.291,3448.9,3448.4,5.89989]
[1719913891143,3.291,3448.9,3448.8,0.09923019]
[1719913891343,3.291,3448.9,3448.4,5.89989]
[1719913891567,3.291,3448.9,3448.8,0.09923019]
[1719913891743,3.291,3448.9,3448.4,5.89989]
[1719913892241,3.291,3448.9,3448.5,0.09923019]
[1719913906575,3.291,3448.9,3448.5,0.09923019]
[1719913914085,1.31922987,3448.8,3448.5,0.09923019]
[1719913914286,3.291,3448.9,3448.5,0.09923019]
[1719913914585,1.31922753,3448.8,3448.5,0.09923019]
[1719913914761,3.291,3448.9,3448.5,0.09923019]
[1719913914963,1.31922788,3448.8,3448.5,0.09923019]
[1719913915295,3.291,3448.9,3448.5,0.09923019]
[1719913915463,1.31917764,3448.8,3448.5,0.09923019]
[1719913915663,3.291,3448.9,3448.5,0.09923019]
[1719913915874,1.31917364,3448.8,3448.5,0.09923019]
[1719913916095,3.291,3448.9,3448.5,0.09923019]
[1719913916290,1.31917089,3448.8,3448.5,0.09923019]
[1719913916496,1.31917089,3448.7,3448.5,0.09923019]
[1719913916659,3.291,3448.9,3448.5,0.09923019]
[1719913916866,1.31916781,3448.8,3448.5,0.09923019]
[1719913917176,1.31916781,3448.7,3448.5,0.09923019]
[1719913917494,1.31924591,3448.6,3448.5,0.09923019]
[1719913918377,3.291,3448.9,3448.5,0.09923019]
[1719913918704,0.54564527,3448.8,3448.5,0.09923019]
[1719913918892,0.54564527,3448.7,3448.5,0.09923019]
[1719913919081,3.291,3448.9,3448.5,0.09923019]
[1719913919398,0.54561429,3448.8,3448.5,0.09923019]
[1719913919603,0.54561429,3448.7,3448.5,0.09923019]
[1719913919770,3.291,3448.9,3448.5,0.09923019]
[1719913919970,0.54561453,3448.8,3448.5,0.09923019]
[1719913920166,0.54561453,3448.7,3448.5,0.09923019]
[1719913920403,3.291,3448.9,3448.5,0.09923019]
[1719913920606,0.54562329,3448.8,3448.5,0.09923019]
[1719913920903,0.54562329,3448.7,3448.5,0.09923019]
[1719913921092,3.291,3448.9,3448.5,0.09923019]
[1719913921293,0.54562721,3448.8,3448.5,0.09923019]
[1719913921474,0.54562721,3448.7,3448.5,0.09923019]
[1719913921675,3.291,3448.9,3448.5,0.09923019]
[1719913921908,0.54562714,3448.8,3448.5,0.09923019]
[1719913922110,0.54562714,3448.7,3448.5,0.09923019]
[1719913922276,3.291,3448.9,3448.5,0.09923019]
[1719913922476,0.54562738,3448.8,3448.5,0.09923019]
[1719913922689,0.54562738,3448.7,3448.5,0.09923019]
[1719913922976,2.4565,3449.4,3448.6,2.89972]
[1719913923294,2.4565,3449.4,3448.7,5.20845483]
[1719913923295,1.05253804,3449.3,3448.7,5.20845483]
[1719913923609,0.54552233,3449.2,3448.8,2.89952]
[1719913923769,0.54552233,3449.1,3448.8,2.89952]
[1719913924089,0.824,3449.4,3448.9,0.91009231]
[1719913924288,0.54533024,3449.3,3448.9,0.09929483]
[1719913924481,0.54533024,3449.2,3449.0,2.89938]
[1719913924681,7.41,3449.6,3449.1,7.08109956]
[1719913924936,2.4751,3450.0,3449.3,2.89912]
[1719913925076,0.54522616,3449.9,3449.3,2.89912]
[1719913925276,0.54522616,3449.8,3449.3,2.89912]
[1719913925476,3.62901,3450.0,3449.4,0.09924704]
[1719913925676,0.54525632,3449.9,3449.4,0.09924704]
[1719913925923,0.54525632,3449.8,3449.4,0.09924704]
[1719913926093,3.62901,3450.0,3449.4,0.09924704]
[1719913926406,0.54525758,3449.9,3449.4,0.09924704]
[1719913926600,3.62901,3450.0,3449.4,0.09924704]
[1719913926910,0.5452587,3449.9,3449.4,0.09924704]
[1719913927113,3.62901,3450.0,3449.4,0.09924704]
[1719913929280,2.4751,3450.0,3449.4,2.99828704]
[1719913929509,0.824,3449.9,3449.4,2.99828704]
[1719913931112,2.89796,3450.7,3449.6,2.89888]
[1719913931282,0.824,3450.2,3449.6,2.89888]
[1719913931477,3.106,3450.2,3449.6,2.89888]
[1719913931710,3.106,3450.2,3449.7,0.09912619]
[1719913932285,3.106,3450.2,3449.7,2.99791619]
[1719913934012,0.824,3450.0,3449.7,2.99791619]
[1719913934221,0.824,3450.0,3449.7,0.09912619]
[1719913934530,0.824,3450.0,3449.5,5.79782]
[1719913934814,0.824,3450.0,3449.6,0.09869063]
[1719913936611,0.824,3450.0,3449.6,2.99757063]
[1719913940388,0.824,3450.0,3449.6,0.09869063]
[1719913940918,0.824,3450.0,3449.7,0.09869063]
[1719913941100,0.824,3449.8,3449.4,3.0]
[1719913941303,0.824,3449.8,3449.5,0.09869063]
[1719913941545,0.824,3449.8,3449.2,5.89921]
[1719913941546,0.824,3449.8,3449.3,2.89913]
[1719913941710,0.824,3449.8,3449.6,0.09869063]
[1719913941926,0.824,3449.8,3449.4,3.0]
[1719913942122,0.824,3449.8,3449.5,0.09869063]
[1719913942324,0.824,3449.8,3449.4,3.0]
[1719913942615,0.824,3449.8,3449.5,0.09869063]
[1719913943006,0.824,3449.8,3449.3,3.0]
[1719913943206,0.824,3449.8,3449.6,0.09869063]
[1719913943400,0.824,3449.8,3449.3,3.0]
[1719913943618,0.824,3449.8,3449.7,0.09869063]
[1719913943818,0.824,3449.8,3449.3,3.0]
[1719913944007,3.275,3449.8,3449.7,0.09869063]
[1719913944202,3.275,3449.8,3449.3,3.0]
[1719913944708,3.275,3449.8,3449.4,0.09869063]
[1719913945119,2.775,3449.8,3449.4,0.09869063]
[1719913945942,0.824,3449.6,3449.4,0.09869063]
[1719913946309,0.824,3449.6,3449.1,3.0]
[1719913946511,2.3661,3449.3,3449.2,0.09875243]
[1719913946721,2.3661,3449.3,3448.6,2.89969]
[1719913946916,2.3661,3449.3,3448.7,0.09875243]
[1719913947117,0.824,3449.2,3448.7,0.09875243]
[1719913948044,2.3661,3449.3,3448.7,0.09875243]
[1719913948953,2.3661,3449.3,3448.7,3.09875243]
[1719913951941,0.824,3448.9,3448.7,3.09875243]
[1719913952142,2.3325,3448.8,3448.7,0.09875243]
[1719913952341,5.23205,3448.8,3447.9,2.2096]
[1719913952540,0.824,3448.5,3448.0,0.09562881]
[1719913952746,0.824,3448.5,3448.0,0.61618669]
[1719913953750,0.824,3448.5,3448.0,3.61618669]
[1719913954914,0.824,3448.5,3448.1,3.0]
[1719913955130,0.824,3448.5,3448.0,0.61618669]
[1719913955131,0.824,3448.5,3448.2,0.09577497]
[1719913955342,0.824,3448.5,3448.0,0.52055788]
[1719913955513,0.824,3448.5,3448.1,0.73786576]
[1719913957024,0.824,3448.7,3448.1,0.73786576]
[1719913959432,2.3065,3448.6,3448.1,0.73786576]
[1719913961730,2.3065,3448.6,3448.1,3.73786576]
[1719913961930,2.3065,3448.6,3448.2,1.01586336]
[1719913962126,2.3065,3448.6,3448.3,0.09611228]
[1719913963400,2.3065,3448.6,3448.0,0.52055788]
[1719913963606,2.3065,3448.6,3448.4,0.09613477]
[1719913963884,2.3065,3448.6,3448.5,0.09613758]
[1719913964083,2.3065,3448.6,3448.0,0.52055788]
[1719913964501,2.3065,3448.6,3448.1,0.09613758]
[1719913964976,2.3065,3448.6,3445.6,1.51807791]
[1719913964977,8.69991,3448.3,3448.2,0.08974029]
[1719913965181,9.04874,3448.3,3448.2,0.08974029]
[1719913965385,2.90044,3447.8,3447.3,1.160928]
[1719913965549,0.824,3447.6,3447.3,1.160928]
[1719913965748,0.824,3447.6,3447.4,0.07868078]
[1719913966180,2.9005,3447.7,3446.8,5.93478]
[1719913966354,2.9005,3447.7,3447.5,0.07868078]
[1719913966548,2.9005,3447.7,3446.8,5.93478]
[1719913966773,2.9005,3447.7,3446.9,0.07868078]
[1719913967561,2.9005,3447.7,3446.9,3.07868078]
[1719913972178,3.72447,3447.8,3446.9,3.07868078]
[1719913972376,2.90049,3447.7,3447.0,0.90134608]
[1719913973181,2.90049,3447.7,3447.1,0.07868078]
[1719913974991,2.3878,3447.6,3447.1,0.07868078]
[1719913975198,3.2118,3447.6,3447.1,0.07868078]
[1719913976066,2.3878,3447.6,3447.1,0.07868078]
[1719913979419,2.90049,3447.7,3447.1,0.07868078]
[1719913981113,0.824,3447.8,3447.1,0.07868078]
[1719913981912,0.824,3447.8,3447.1,3.07868078]
[1719913982106,0.824,3447.8,3447.1,4.57786547]
[1719913982466,3.502785,3448.6,3447.1,4.57786547]
[1719913982467,2.3623,3448.3,3447.2,2.90087]
[1719913982703,2.3623,3448.3,3447.4,2.90065]
[1719913982900,2.3623,3448.3,3447.5,6.72464]
[1719913983272,2.3623,3448.3,3447.6,0.07891341]
[1719913984080,9.7199,3448.7,3447.8,2.90033]
[1719913984275,3.1339,3448.7,3448.0,2.90022]
[1719913984904,3.1339,3448.7,3448.1,0.07906476]
[1719913987287,0.824,3448.5,3448.1,0.07906476]
[1719913987984,0.824,3448.5,3447.9,3.38612536]
[1719913988188,0.824,3448.5,3448.2,0.07886853]
[1719913988422,0.824,3448.5,3447.9,3.0]
[1719913988600,0.824,3448.5,3448.3,0.07886853]
[1719913988787,0.824,3448.5,3447.9,3.0]
[1719913988988,0.824,3448.5,3448.4,0.07886853]
[1719913989199,0.824,3448.5,3447.9,3.0]
[1719913989422,0.824,3448.5,3448.4,0.07886853]
[1719913989608,0.824,3448.5,3447.9,3.0]
[1719913990022,0.824,3448.5,3448.0,0.07886853]
[1719913991321,0.796,3448.5,3448.0,0.07886853]
[1719913994331,0.796,3448.5,3448.0,1.18778138]
[1719913994626,3.1339,3448.7,3448.0,1.18778138]
[1719913994825,0.824,3448.5,3448.0,1.18778138]
[1719913995598,0.324,3448.5,3448.0,1.18778138]
[1719913996323,0.324,3448.5,3448.1,0.07888535]
[1719913996525,3.1339,3448.7,3448.1,0.07888535]
[1719913996727,3.1339,3448.7,3447.9,2.90027]
[1719913997112,3.1339,3448.7,3448.0,0.0762564]
[1719913998333,4.027188,3448.7,3448.0,0.0762564]
[1719913999530,0.824,3448.2,3448.0,0.0762564]
[1719913999828,0.824,3448.2,3447.6,3.0]
[1719913999829,3.1549,3448.2,3447.6,3.0]
[1719914000035,3.1549,3448.2,3448.1,0.07626483]
[1719914000235,3.1549,3448.2,3447.6,5.90056]
[1719914000541,3.1549,3448.2,3448.1,0.07626483]
[1719914000848,3.760372,3448.2,3448.1,0.07626483]
[1719914001134,3.760372,3448.2,3447.6,5.90056]
[1719914001330,3.1549,3448.2,3448.1,0.07626483]
[1719914001530,3.1549,3448.2,3447.6,5.90056]
[1719914001531,2.4745,3449.3,3447.9,1.598]
[1719914001735,2.4745,3449.3,3448.1,0.07626483]
[1719914001736,2.3628,3448.8,3448.1,0.07626483]
[1719914001935,0.824,3448.7,3448.0,0.07628725]
[1719914002132,0.824,3448.7,3447.9,1.598]
[1719914002309,0.824,3448.7,3448.1,0.07626763]
[1719914002512,1.432624,3448.7,3447.9,1.598]
[1719914002997,1.432624,3448.7,3448.0,0.07626763]
[1719914003430,1.432624,3448.7,3448.0,2.97648763]
[1719914003996,0.824,3448.7,3448.0,2.97648763]
[1719914004200,0.824,3448.7,3448.1,2.90014]
[1719914004632,0.824,3448.7,3448.2,0.07626763]
[1719914006954,0.824,3448.7,3447.9,4.49825]
[1719914007105,0.824,3448.7,3448.3,0.07372537]
[1719914007439,1.722577,3448.7,3448.4,0.07372537]
[1719914007799,1.722577,3448.7,3447.9,4.49825]
[1719914008031,1.722577,3448.7,3448.0,0.07372537]
[1719914008237,2.3628,3448.8,3448.0,2.97394537]
[1719914008437,3.1868,3448.8,3448.0,2.97394537]
[1719914008646,0.824,3448.6,3448.0,2.97394537]
[1719914008850,0.824,3448.6,3448.0,5.87416537]
[1719914009014,0.824,3448.6,3448.1,2.90012]
[1719914009656,1.14268,3448.6,3448.2,0.07372537]
[1719914009853,2.2544,3448.5,3448.2,0.07372537]
[1719914010026,0.824,3448.4,3447.8,2.90034]
[1719914010224,0.824,3448.4,3448.3,0.07371697]
[1719914010450,0.824,3448.4,3447.8,5.80066]
[1719914010636,0.824,3448.4,3448.3,0.07371697]
[1719914010838,1.13184,3448.4,3447.8,5.80066]
[1719914011158,0.824,3448.4,3448.3,0.07371697]
[1719914011556,0.824,3448.4,3447.9,2.90028]
[1719914011850,0.824,3448.4,3448.0,0.07371697]
[1719914013734,2.2544,3448.5,3448.0,0.07371697]
[1719914014463,2.852201,3448.5,3448.0,0.07371697]
[1719914018050,0.824,3448.4,3448.0,0.07371697]
[1719914018436,0.824,3448.4,3447.8,2.90038]
[1719914018636,0.824,3448.4,3448.1,0.07371697]
[1719914019057,0.824,3448.4,3447.8,2.90038]
[1719914019258,0.6575921,3448.3,3448.2,0.07371697]
[1719914019947,0.6575921,3448.3,3447.8,2.90038]
[1719914020461,0.6575921,3448.3,3447.9,0.07371697]
[1719914023364,2.852201,3448.5,3447.9,0.07371697]
[1719914023564,0.54503246,3448.4,3447.9,2.97401697]
[1719914023728,2.2544,3448.5,3447.9,2.97401697]
[1719914023925,0.54486295,3448.4,3447.9,2.97401697]
[1719914024140,2.2544,3448.5,3447.9,2.97401697]
[1719914024427,0.54474694,3448.4,3447.9,2.97401697]
[1719914024626,2.2544,3448.5,3447.9,2.97401697]
[1719914024844,0.54475949,3448.4,3447.9,2.97401697]
[1719914025160,2.2544,3448.5,3447.9,2.97401697]
[1719914025347,0.54474946,3448.4,3447.9,2.97401697]
[1719914025550,0.54474946,3448.3,3447.9,2.97401697]
[1719914025740,2.2544,3448.5,3447.9,2.97401697]
[1719914025938,0.54467342,3448.4,3447.9,2.97401697]
[1719914026141,0.54467342,3448.3,3448.0,2.90023]
[1719914026462,2.2544,3448.5,3448.1,0.07377303]
[1719914026657,0.54459646,3448.4,3448.1,0.07377303]
[1719914026861,0.54459646,3448.3,3448.1,0.07377303]
[1719914027071,2.852201,3448.5,3448.1,0.07377303]
[1719914027243,0.54448127,3448.4,3448.1,0.07377303]
[1719914027556,0.54448127,3448.3,3448.1,0.07377303]
[1719914027758,2.852201,3448.5,3448.1,0.07377303]
[1719914028060,0.54443461,3448.4,3448.1,0.07377303]
[1719914028233,0.54443461,3448.3,3448.1,0.07377303]
[1719914028434,2.852201,3448.5,3448.1,0.07377303]
[1719914028651,0.54447683,3448.4,3448.1,0.07377303]
[1719914028851,0.54447683,3448.3,3448.1,0.07377303]
[1719914029054,2.852201,3448.5,3448.1,0.07377303]
[1719914029254,0.54448669,3448.4,3448.1,0.07377303]
[1719914029486,0.54448669,3448.3,3448.1,0.07377303]
[1719914029766,2.852201,3448.5,3448.1,0.07377303]
[1719914029979,0.54447613,3448.4,3448.1,0.07377303]
[1719914030265,0.54447613,3448.3,3448.1,0.07377303]
[1719914030569,2.852201,3448.5,3448.1,0.07377303]
[1719914030866,0.5444782,3448.4,3448.1,0.07377303]
[1719914031078,0.5444782,3448.3,3448.1,0.07377303]
[1719914031373,2.852201,3448.5,3448.1,0.07377303]
[1719914031545,0.54453167,3448.4,3448.1,0.07377303]
[1719914031748,0.54453167,3448.3,3448.1,0.07377303]
[1719914031953,2.852201,3448.5,3448.1,0.07377303]
[1719914032143,0.54451684,3448.4,3448.1,0.07377303]
[1719914032464,0.54451684,3448.3,3448.1,0.07377303]
[1719914032665,2.852201,3448.5,3448.1,0.07377303]
[1719914032862,0.54451801,3448.4,3448.1,0.07377303]
[1719914033073,0.54451801,3448.3,3448.1,0.07377303]
[1719914033238,2.852201,3448.5,3448.1,0.07377303]
[1719914033566,0.54455841,3448.4,3448.1,0.07377303]
[1719914033766,0.54455841,3448.3,3448.2,2.90006]
[1719914033962,2.4973,3448.6,3448.2,2.90006]
[1719914034135,0.54455841,3448.5,3448.2,2.9738218]
[1719914039248,1.36855841,3448.5,3448.2,0.0737618]
[1719914039442,0.54455841,3448.4,3447.8,2.90035]
[1719914039642,0.54455841,3448.4,3448.3,0.07374218]
[1719914039837,0.54455841,3448.4,3447.8,2.90035]
[1719914040174,0.54455841,3448.3,3447.9,0.07374218]
[1719914040474,0.824,3448.5,3447.9,2.97404218]
[1719914040638,0.54487907,3448.4,3447.9,2.97404218]
[1719914040838,0.54487907,3448.3,3447.9,2.97404218]
[1719914041070,1.446096,3448.5,3447.9,2.97404218]
[1719914041381,0.54489448,3448.4,3447.9,2.97404218]
[1719914041539,0.54489448,3448.3,3447.9,2.97404218]
[1719914041745,1.446096,3448.5,3447.9,2.97404218]
[1719914042058,1.22910707,3448.4,3447.9,2.97404218]
[1719914042269,0.54480147,3448.3,3447.9,2.97404218]
[1719914042987,0.54480147,3448.3,3447.9,1.729748]
[1719914043183,0.824,3448.8,3448.2,2.90006]
[1719914043399,0.87303839,3448.7,3448.2,2.90006]
[1719914043692,1.05133412,3448.6,3448.3,0.07375621]
[1719914043843,0.54472839,3448.5,3448.3,0.07375621]
[1719914044042,0.54472839,3448.4,3448.3,0.07375621]
[1719914044547,0.54472839,3448.4,3448.3,2.97372621]
[1719914044997,0.824,3448.9,3448.3,2.97372621]
[1719914045144,1.0387148,3448.8,3448.3,2.97372621]
[1719914045349,0.54473835,3448.7,3448.3,2.97372621]
[1719914047414,0.54473835,3448.7,3448.4,5.79966]
[1719914047569,0.54473835,3448.6,3448.4,5.79966]
[1719914047915,3.2831,3449.0,3448.5,0.07369175]
[1719914048120,1.43905594,3448.9,3448.5,0.07369175]
[1719914048413,0.54471516,3448.8,3448.4,5.79966]
[1719914048768,0.54471516,3448.8,3448.5,0.07369175]
[1719914048769,0.54471516,3448.7,3448.5,0.07369175]
[1719914048969,0.54471516,3448.6,3448.5,0.07369175]
[1719914049407,0.824,3448.8,3448.5,2.97349175]
[1719914049607,0.54470739,3448.7,3448.5,2.97349175]
[1719914049773,0.824,3448.8,3448.5,2.97349175]
[1719914049967,0.54466471,3448.7,3448.5,2.97349175]
[1719914050174,0.824,3449.3,3448.7,2.89963]
[1719914050478,0.54467381,3449.2,3448.8,2.89949]
[1719914050681,0.54467381,3449.1,3449.0,2.89939]
[1719914051070,8.740876,3449.6,3449.0,2.97307054]
[1719914051383,0.54467413,3449.5,3449.0,5.87240054]
[1719914051595,0.54467413,3449.4,3449.0,5.87240054]
[1719914051793,0.54467413,3449.3,3449.0,2.97301054]
[1719914052009,0.54467413,3449.2,3449.0,2.97301054]
[1719914052202,8.740876,3449.6,3449.0,2.97301054]
[1719914052509,2.5648824,3449.5,3449.0,2.97301054]
[1719914052671,0.5446648,3449.4,3449.0,2.97201054]
[1719914052871,0.5446648,3449.3,3449.0,2.97201054]
[1719914053099,0.5446648,3449.2,3449.0,2.97201054]
[1719914053304,0.824,3449.5,3449.0,2.97201054]
[1719914053505,0.54466936,3449.4,3449.0,2.97201054]
[1719914053778,0.54466936,3449.3,3449.0,2.97201054]
[1719914054006,1.14613,3449.5,3449.0,2.97201054]
[1719914058723,0.824,3449.5,3449.0,2.97201054]
[1719914062036,0.824,3449.5,3449.0,0.07268054]
[1719914062339,0.824,3449.5,3448.9,2.89946]
[1719914062492,0.824,3449.5,3449.1,0.07213555]
[1719914062493,2.2529,3449.4,3449.1,0.07213555]
[1719914062689,2.2529,3449.4,3448.9,2.89946]
[1719914062919,2.2529,3449.4,3449.2,0.07213835]
[1719914063089,2.56059,3449.4,3448.9,2.89946]
[1719914063293,2.56059,3449.4,3449.3,0.07213835]
[1719914063536,2.56059,3449.4,3448.9,2.89946]
[1719914063720,2.56059,3449.4,3449.3,0.07213835]
[1719914064236,2.56059,3449.4,3448.9,2.89946]
[1719914064439,2.56059,3449.4,3449.0,0.07213835]
[1719914066123,0.824,3449.3,3449.0,0.07213835]
[1719914066343,0.824,3449.1,3449.0,0.07213835]
[1719914066694,0.824,3449.1,3448.6,2.89966]
[1719914066901,0.824,3449.1,3449.0,0.07214676]
[1719914067740,2.3464,3449.0,3448.5,2.89974]
[1719914068849,0.338459,3449.3,3448.6,2.8997]